[Event "Serbian League 2024"]
[Site "Bajina Basta"]
[Date "2024.10.01"]
[Round "5.28"]
[White "Perunovic, Miodrag"]
[Black "Pavlovic, Goran"]
[Result "1-0"]
[Annotator "RC"]
[ECO "E94"]
[WhiteElo "2347"]
[BlackElo "2337"]
[PlyCount "71"]
[EventDate "2024.09.26"]
[EventType "team-tourn"]
[EventCountry "SRB"]
[SourceTitle "playchess.com"]
[Source "ChessBase"]
[SourceQuality "1"]
[TimeControl "40/5400+30:1800+30"]

1. d4 {[%emt 0:00:05]} Nf6 {[%emt 0:00:13]} 2. c4 {[%emt 0:00:50]} d6 {[%emt 0:00:43]} 3. Nc3 {[%emt 0:01:08]} Nbd7 {[%emt 1:31:04]} 4. Nf3 {[%emt 1:30:27]} e5 {[%emt 0:00:00]} 5. e4 {[%emt 0:00:00]} g6 {[%emt 0:00:00]} 6. Be2 {[%emt 0:00:00]} Bg7 {[%emt 0:00:00]} 7. O-O {[%emt 0:00:00]} O-O {[%emt 0:00:00]} 8. Be3 {[%emt 0:00:00]} Ng4 {[%emt 0:00:00]} 9. Bg5 {[%emt 0:00:00]} f6 {[%emt 0:00:00]} 10. Bd2 {[%emt 0:00:00]} Nh6 {[%emt 0:00:00]} 11. Qc2 {[%emt 0:00:00]} c6 {[%emt 0:00:00]} 12. Rad1 {[%emt 0:04:00]} Qe7 {[%emt 0:00:00]} 13. Rfe1 {[%emt 0:00:00]} Nf7 {[%emt 0:00:00]} 14. b4 {[%emt 0:00:00]} Re8 {[%emt 0:00:00]} 15. Be3 {[%emt 0:00:00]} Bh6 {[%emt 0:00:00]} 16. Bxh6 {[%emt 0:00:00]} Nxh6 {[%emt 0:00:00]} 17. d5 {[%emt 0:00:00]} Nf7 {[%emt 0:00:00]} 18. dxc6 {[%emt 0:00:00]} bxc6 {[%emt 0:00:00]} 19. Nd2 {[%emt 0:00:00]} Nf8 {[%emt 0:00:00]} 20. Nb3 {[%emt 0:00:00]} Be6 {[%emt 0:00:00]} 21. Na5 {[%emt 0:00:00]} Qc7 {[%emt 0:00:00]} 22. Rd2 {[%emt 0:00:00]} a6 {[%emt 0:00:00]} 23. Red1 {[%emt 0:00:00]} Kg7 {[%emt 0:00:00]} 24. a3 {[%emt 0:00:00]} h5 {[%emt 0:00:00]} 25. Na4 {[%emt 0:00:00]} c5 {[%emt 0:00:00]} 26. Nc3 {[%emt 0:00:00]} Rab8 {[%emt 0:00:00]} 27. Nd5 {[%emt 0:00:00]} Qc8 {[%emt 0:00:00]} 28. Rb1 {[%emt 0:00:00]} Bd7 {[%emt 0:00:00]} 29. b5 {[%emt 0:00:00]} Ne6 {[%emt 0:00:00]} 30. Qc3 {[%emt 0:00:00]} Nd4 {[%emt 0:00:00]} 31. a4 {[%emt 0:00:00]} Nd8 {[%emt 0:00:00]} 32. Bf1 {[%emt 0:00:00]} Be6 {[%emt 0:00:00]} 33. Rdb2 {[%emt 0:00:00]} Nf7 {[%emt 0:00:00]} 34. bxa6 {[%emt 0:00:00]} Rxb2 {[%emt 0:00:00]} 35. Rxb2 {[%emt 0:00:00]} Nc6 {[%emt 0:00:00]} 36. Rb7 {[%emt 0:00:00]} 1-0

[Event "Serbian League 2024"]
[Site "Bajina Basta"]
[Date "2024.10.01"]
[Round "5.29"]
[White "Stankovic, Boris"]
[Black "Radovanovic, Dusan"]
[Result "1-0"]
[Annotator "RC"]
[ECO "B76"]
[WhiteElo "2290"]
[BlackElo "2293"]
[PlyCount "119"]
[EventDate "2024.09.26"]
[EventType "team-tourn"]
[EventCountry "SRB"]
[SourceTitle "playchess.com"]
[Source "ChessBase"]
[SourceQuality "1"]
[TimeControl "40/5400+30:1800+30"]

1. e4 {[%emt 1:31:00]} c5 {[%emt 0:00:24]} 2. Nf3 {[%emt 0:00:00]} d6 {[%emt 0:00:14]} 3. d4 {[%emt 0:00:00]} cxd4 {[%emt 0:00:22]} 4. Nxd4 {[%emt 0:00:00]} Nf6 {[%emt 0:00:13]} 5. Nc3 {[%emt 0:00:00]} g6 {[%emt 0:00:29]} 6. Be3 {[%emt 0:00:00]} Bg7 {[%emt 0:00:05]} 7. f3 {[%emt 0:00:00]} O-O {[%emt 0:00:12]} 8. Qd2 {[%emt 0:00:00]} Nc6 {[%emt 0:00:06]} 9. O-O-O {[%emt 0:00:00]} h5 {[%emt 0:00:27]} 10. h4 {[%emt 0:00:00]} d5 {[%emt 0:00:49]} 11. Nxc6 {[%emt 0:00:00]} bxc6 {[%emt 0:00:05]} 12. Bh6 {[%emt 0:00:00]} Be6 {[%emt 0:20:42]} 13. Bxg7 {[%emt 0:00:00]} Kxg7 {[%emt 0:00:26]} 14. exd5 {[%emt 0:00:00]} cxd5 {[%emt 0:01:31]} 15. Qd4 {[%emt 0:00:00]} Qb6 {[%emt 0:21:35]} 16. Bb5 {[%emt 0:00:00]} Rfd8 {[%emt 0:16:39]} 17. Ba4 {[%emt 0:00:00]} Qxd4 {[%emt 0:03:14]} 18. Rxd4 {[%emt 0:00:00]} Bd7 {[%emt 0:00:17]} 19. Re1 {[%emt 0:00:00]} e6 {[%emt 0:01:40]} 20. Bb3 {[%emt 0:00:00]} Bc6 {[%emt 0:00:55]} 21. Ba4 {[%emt 0:00:00]} Rac8 {[%emt 0:05:14]} 22. Nd1 {[%emt 0:00:00]} Re8 {[%emt 0:03:12]} 23. Bxc6 {[%emt 0:00:00]} Rxc6 {[%emt 0:00:06]} 24. Re5 {[%emt 0:00:00]} Rec8 {[%emt 0:06:01]} 25. c3 {[%emt 0:00:00]} Rc4 {[%emt 0:05:07]} 26. Rxc4 {[%emt 0:00:00]} Rxc4 {[%emt 0:00:02]} 27. g3 {[%emt 0:00:00]} Rc6 {[%emt 0:02:26]} 28. Kd2 {[%emt 0:00:00]} Nd7 {[%emt 0:03:08]} 29. Re1 {[%emt 0:00:00]} e5 {[%emt 0:00:30]} 30. Nf2 {[%emt 0:02:17]} Ra6 {[%emt 0:01:59]} 31. a3 {[%emt 0:01:39]} Rb6 {[%emt 0:00:08]} 32. Nd3 {[%emt 0:01:25]} f6 {[%emt 0:02:08]} 33. a4 {[%emt 0:00:46]} Kf7 {[%emt 0:01:01]} 34. b4 {[%emt 0:00:14]} Re6 {[%emt 0:03:06]} 35. a5 {[%emt 0:01:56]} g5 {[%emt 0:00:46]} 36. b5 {[%emt 0:03:34]} e4 {[%emt 0:00:33]} 37. fxe4 {[%emt 0:02:29]} dxe4 {[%emt 0:00:09]} 38. Nb4 {[%emt 0:00:43]} gxh4 {[%emt 0:01:09]} 39. gxh4 {[%emt 0:00:01]} f5 {[%emt 0:01:18]} 40. Ke3 {[%emt 0:01:11]} Rg6 {[%emt 0:00:52]} 41. Nc6 {[%emt 0:07:03]} Ke6 {[%emt 0:12:54]} 42. Nxa7 {[%emt 0:03:52]} Rg3+ {[%emt 0:03:18]} 43. Kd4 {[%emt 0:09:13]} Ne5 {[%emt 0:05:44]} 44. Re3 {[%emt 0:03:36]} Rxe3 {[%emt 0:05:56]} 45. Kxe3 {[%emt 0:00:06]} Nc4+ {[%emt 0:00:07]} 46. Kf4 {[%emt 0:00:15]} Nxa5 {[%emt 0:00:56]} 47. b6 {[%emt 0:00:25]} Nb7 {[%emt 0:04:42]} 48. Nc6 {[%emt 0:02:07]} Nd6 {[%emt 0:00:51]} 49. c4 {[%emt 0:03:34]} Kd7 {[%emt 0:00:37]} 50. Ne5+ {[%emt 0:00:08]} Kc8 {[%emt 0:00:34]} 51. c5 {[%emt 0:00:38]} Nb5 {[%emt 0:00:25]} 52. Kxf5 {[%emt 0:03:56]} e3 {[%emt 0:00:06]} 53. Nd3 {[%emt 0:00:38]} Kb7 {[%emt 0:00:27]} 54. Kg5 {[%emt 0:00:41]} e2 {[%emt 0:00:10]} 55. Kxh5 {[%emt 0:00:47]} Nd4 {[%emt 0:00:08]} 56. Kg4 {[%emt 0:00:51]} Kc6 {[%emt 0:01:36]} 57. h5 {[%emt 0:00:21]} Ne6 {[%emt 0:00:03]} 58. b7 {[%emt 0:02:54]} Kxb7 {[%emt 0:00:27]} 59. h6 {[%emt 0:00:28]} Kc6 {[%emt 0:01:07]} 60. h7 {[%emt 0:00:24]} 1-0

[Event "Serbian League 2024"]
[Site "Bajina Basta"]
[Date "2024.10.01"]
[Round "5.30"]
[White "Pavlovic, Dejan S"]
[Black "Petrovic, Aleksa"]
[Result "0-1"]
[Annotator "RC"]
[ECO "C41"]
[WhiteElo "2350"]
[BlackElo "2250"]
[PlyCount "66"]
[EventDate "2024.09.26"]
[EventType "team-tourn"]
[EventCountry "SRB"]
[SourceTitle "playchess.com"]
[Source "ChessBase"]
[SourceQuality "1"]
[TimeControl "40/5400+30:1800+30"]

1. d4 {[%emt 0:00:11]} d6 {[%emt 0:00:13]} 2. e4 {[%emt 0:01:18]} Nf6 {[%emt 0:01:57]} 3. Nc3 {[%emt 0:00:12]} c6 {[%emt 0:00:07]} 4. a4 {[%emt 0:00:47]} e5 {[%emt 0:04:37]} 5. Nf3 {[%emt 0:18:37]} Qa5 {[%emt 0:05:28]} 6. Bd2 {[%emt 0:06:21]} Qc7 {[%emt 0:02:08]} 7. Bc4 {[%emt 0:00:53]} Be7 {[%emt 0:01:25]} 8. O-O {[%emt 0:00:58]} O-O {[%emt 0:00:38]} 9. h3 {[%emt 0:02:18]} Nbd7 {[%emt 0:04:04]} 10. Re1 {[%emt 0:00:26]} b6 {[%emt 0:10:32]} 11. Bg5 {[%emt 0:06:23]} Bb7 {[%emt 0:03:36]} 12. Ba2 {[%emt 0:05:04]} a6 {[%emt 0:05:09]} 13. Nh4 {[%emt 0:01:18]} g6 {[%emt 0:24:21]} 14. dxe5 {[%emt 0:05:44]} dxe5 {[%emt 0:01:42]} 15. Qf3 {[%emt 0:01:29]} Kg7 {[%emt 0:07:00]} 16. Rad1 {[%emt 0:06:02]} h6 {[%emt 0:02:18]} 17. Bc1 {[%emt 0:10:12]} Nh7 {[%emt 0:10:26]} 18. Qg3 {[%emt 0:06:56]} Bg5 {[%emt 0:00:38]} 19. Be3 {[%emt 0:01:09]} Ndf6 {[%emt 0:03:28]} 20. Nf3 {[%emt 0:02:06]} Bxe3 {[%emt 0:01:43]} 21. Rxe3 {[%emt 0:00:15]} Rfe8 {[%emt 0:00:27]} 22. Nh4 {[%emt 0:06:51]} Ng5 {[%emt 0:01:05]} 23. Nf3 {[%emt 0:02:20]} Nh5 {[%emt 0:01:59]} 24. Qh4 {[%emt 0:02:04]} Qe7 {[%emt 0:02:48]} 25. Nxg5 {[%emt 0:01:02]} hxg5 {[%emt 0:00:11]} 26. Qg4 {[%emt 0:00:10]} Rad8 {[%emt 0:00:16]} 27. Red3 {[%emt 0:01:42]} Bc8 {[%emt 0:00:43]} 28. Qf3 {[%emt 0:00:50]} Nf4 {[%emt 0:00:43]} 29. R3d2 {[%emt 0:04:58]} Rxd2 {[%emt 0:01:05]} 30. Rxd2 {[%emt 0:00:04]} Rh8 {[%emt 0:00:57]} 31. Qg3 {[%emt 0:01:24]} g4 {[%emt 0:01:23]} 32. hxg4 {[%emt 0:01:44]} Qg5 {[%emt 0:00:10]} 33. Nb1 {[%emt 0:02:26]} Ne2+ {[%emt 0:00:19]} 0-1

[Event "Serbian League 2024"]
[Site "Bajina Basta"]
[Date "2024.10.01"]
[Round "5.31"]
[White "Tarhan, Adar"]
[Black "Hovhannisyan, Robert"]
[Result "1/2-1/2"]
[Annotator "RC"]
[ECO "D40"]
[WhiteElo "2474"]
[BlackElo "2619"]
[PlyCount "168"]
[EventDate "2024.09.26"]
[EventType "team-tourn"]
[EventCountry "SRB"]
[SourceTitle "playchess.com"]
[Source "ChessBase"]
[SourceQuality "1"]
[TimeControl "40/5400+30:1800+30"]

1. d4 {[%emt 0:00:03]} Nf6 {[%emt 0:00:21]} 2. c4 {[%emt 0:00:07]} e6 {[%emt 0:00:07]} 3. Nf3 {[%emt 1:31:50]} d5 {[%emt 0:00:16]} 4. Nc3 {[%emt 0:00:00]} c5 {[%emt 0:00:37]} 5. e3 {[%emt 0:00:00]} Nc6 {[%emt 0:00:55]} 6. a3 {[%emt 0:00:00]} a6 {[%emt 0:01:10]} 7. dxc5 {[%emt 0:00:00]} Bxc5 {[%emt 0:00:08]} 8. b4 {[%emt 0:00:00]} Be7 {[%emt 0:01:02]} 9. cxd5 {[%emt 0:00:00]} Nxd5 {[%emt 0:00:48]} 10. Nxd5 {[%emt 0:00:00]} Qxd5 {[%emt 0:00:37]} 11. Qxd5 {[%emt 0:00:00]} exd5 {[%emt 0:00:05]} 12. Bb2 {[%emt 0:00:00]} f6 {[%emt 0:00:32]} 13. Be2 {[%emt 0:00:00]} Kf7 {[%emt 0:03:11]} 14. Rc1 {[%emt 0:00:00]} Bd6 {[%emt 0:13:03]} 15. Bd1 {[%emt 0:00:00]} Ne7 {[%emt 0:05:40]} 16. Bd4 {[%emt 0:00:00]} Be6 {[%emt 0:11:11]} 17. Kd2 {[%emt 0:00:00]} Rhc8 {[%emt 0:04:44]} 18. Bb3 {[%emt 0:00:00]} a5 {[%emt 0:01:43]} 19. Rxc8 {[%emt 0:00:00]} Nxc8 {[%emt 0:01:46]} 20. Bc3 {[%emt 0:00:00]} a4 {[%emt 0:03:47]} 21. Ba2 {[%emt 0:00:00]} Nb6 {[%emt 0:00:12]} 22. Nd4 {[%emt 0:00:00]} Nc4+ {[%emt 0:00:33]} 23. Bxc4 {[%emt 0:00:00]} dxc4 {[%emt 0:00:04]} 24. Nb5 {[%emt 0:00:00]} Bb8 {[%emt 0:03:04]} 25. Bd4 {[%emt 0:00:00]} Bd7 {[%emt 0:00:34]} 26. Nc3 {[%emt 0:00:00]} Bc6 {[%emt 0:03:33]} 27. f3 {[%emt 0:00:00]} b5 {[%emt 0:00:15]} 28. Ke2 {[%emt 0:00:00]} h5 {[%emt 0:04:06]} 29. h3 {[%emt 0:00:00]} Bg3 {[%emt 0:04:00]} 30. Rd1 {[%emt 0:00:00]} Rd8 {[%emt 0:04:40]} 31. Bc5 {[%emt 0:00:00]} Rxd1 {[%emt 0:00:12]} 32. Nxd1 {[%emt 0:00:00]} f5 {[%emt 0:06:45]} 33. Nc3 {[%emt 0:00:00]} g5 {[%emt 0:01:06]} 34. Kf1 {[%emt 0:00:00]} Bc7 {[%emt 0:03:22]} 35. Bd4 {[%emt 0:00:00]} Kg6 {[%emt 0:06:24]} 36. Ne2 {[%emt 0:00:00]} f4 {[%emt 0:01:21]} 37. exf4 {[%emt 0:00:00]} gxf4 {[%emt 0:00:47]} 38. Nc3 {[%emt 0:00:00]} Kf5 {[%emt 0:00:51]} 39. Ke2 {[%emt 0:00:00]} Ke6 {[%emt 0:01:30]} 40. Kd2 {[%emt 0:00:00]} Be8 {[%emt 0:00:34]} 41. Bg7 {[%emt 0:05:53]} Bb6 {[%emt 0:32:13]} 42. Ne2 {[%emt 0:01:06]} Bc7 {[%emt 0:05:19]} 43. Bh6 {[%emt 0:01:17]} Kf5 {[%emt 0:02:28]} 44. Bg7 {[%emt 0:00:44]} Bd7 {[%emt 0:01:41]} 45. Bd4 {[%emt 0:01:27]} Kg5 {[%emt 0:03:45]} 46. Nc3 {[%emt 0:00:45]} Bc6 {[%emt 0:00:19]} 47. Ke2 {[%emt 0:01:16]} Kf5 {[%emt 0:00:55]} 48. Kd2 {[%emt 0:00:28]} Ke6 {[%emt 0:00:00]} 49. Ne2 {[%emt 0:00:00]} Bd7 {[%emt 0:00:00]} 50. Bg7 {[%emt 0:00:00]} Kd5 {[%emt 0:00:00]} 51. Nc3+ {[%emt 0:00:00]} Kc6 {[%emt 0:00:00]} 52. Ne2 {[%emt 0:00:00]} Kd5 {[%emt 0:00:00]} 53. Nc3+ {[%emt 0:00:00]} Ke6 {[%emt 0:00:00]} 54. Ne2 {[%emt 0:00:00]} Kf5 {[%emt 0:00:00]} 55. Bd4 {[%emt 0:00:00]} Bc6 {[%emt 0:00:00]} 56. Nc3 {[%emt 0:00:00]} Ke6 {[%emt 0:00:00]} 57. Ne2 {[%emt 0:00:00]} Be8 {[%emt 0:00:00]} 58. Bg7 {[%emt 0:00:00]} Kf5 {[%emt 0:00:00]} 59. Bd4 {[%emt 0:00:00]} Bd8 {[%emt 0:00:00]} 60. Nc3 {[%emt 0:00:00]} Ke6 {[%emt 0:00:00]} 61. Ne2 {[%emt 0:00:00]} Kd5 {[%emt 0:00:00]} 62. Bg7 {[%emt 0:00:00]} Bg5 {[%emt 0:00:00]} 63. Nc3+ {[%emt 0:00:00]} Ke6 {[%emt 0:00:00]} 64. Bd4 {[%emt 0:00:00]} Bh6 {[%emt 0:00:00]} 65. Bh8 {[%emt 0:00:00]} Kd6 {[%emt 0:00:00]} 66. Ne2 {[%emt 0:00:00]} Bg5 {[%emt 0:00:00]} 67. Nc3 {[%emt 0:00:00]} Bh6 {[%emt 0:01:36]} 68. Ne2 {[%emt 0:00:00]} Bd7 {[%emt 0:00:46]} 69. Nc3 {[%emt 0:00:00]} Bc6 {[%emt 0:01:14]} 70. Ne2 {[%emt 0:00:00]} Bg5 {[%emt 0:00:49]} 71. Nc3 {[%emt 0:00:00]} Ke6 {[%emt 0:00:33]} 72. Ne2 {[%emt 0:00:00]} Be8 {[%emt 0:00:23]} 73. Nc3 {[%emt 0:00:00]} Kf5 {[%emt 0:01:59]} 74. Ne4 {[%emt 0:00:00]} Be7 {[%emt 0:00:28]} 75. Bd4 {[%emt 0:00:00]} Ke6 {[%emt 0:01:21]} 76. Nc3 {[%emt 0:00:00]} Bd6 {[%emt 0:00:31]} 77. Ne4 {[%emt 0:00:00]} Bc7 {[%emt 0:00:29]} 78. Nc3 {[%emt 0:00:00]} Kd6 {[%emt 0:01:50]} 79. Ne2 {[%emt 0:00:00]} Ke6 {[%emt 0:00:57]} 80. Nc3 {[%emt 0:00:00]} Bd6 {[%emt 0:00:53]} 81. Ne4 {[%emt 0:00:00]} Bb8 {[%emt 0:00:24]} 82. Nc3 {[%emt 0:00:00]} Bc6 {[%emt 0:01:36]} 83. Ne2 {[%emt 0:00:00]} Bd6 {[%emt 0:00:14]} 84. Bg7 {[%emt 0:00:00]} Bd7 {[%emt 0:00:27]} 1/2-1/2

[Event "Serbian League 2024"]
[Site "Bajina Basta"]
[Date "2024.10.01"]
[Round "5.32"]
[White "Grigoryan, Karen H."]
[Black "Celik, Hasan Huseyin"]
[Result "1/2-1/2"]
[Annotator "TA"]
[ECO "D23"]
[WhiteElo "2569"]
[BlackElo "2425"]
[PlyCount "85"]
[EventDate "2024.09.26"]
[EventType "team-tourn"]
[EventCountry "SRB"]
[SourceTitle "playchess.com"]
[Source "ChessBase"]
[SourceQuality "1"]
[TimeControl "40/5400+30:1800+30"]

{[%evp 10,85,8,0,13,3,9,15,15,0,12,0,19,4,13,0,0,-14,-2,-38,0,0,10,0,9,-27,0,0,3,-25,-8,-7,0,-3,13,4,0,8,0,0,0,0,-16,0,0,0,0,0,0,0,0,-25,-27,-14,0,0,0,0,0,0,0,0,0,-20,-21,-34,-20,-20,-20,-37,-37,-37,-37,-37,-52,-52,-52,-52]} 1. d4 d5 {[%emt 1:31:00]} 2. c4 {[%emt 1:31:30]} c6 {[%emt 0:00:30]} 3. Nf3 {[%emt 0:00:30]} Nf6 {[%emt 0:00:30]} 4. Qc2 {[%emt 0:00:30]} dxc4 {[%emt 0:00:30]} 5. Qxc4 {[%emt 0:00:30]} Bg4 {[%emt 0:00:30]} 6. Nbd2 {[%emt 0:00:30]} Nbd7 {[%emt 0:00:30]} 7. g3 {[%emt 0:00:30]} e6 {[%emt 0:00:30]} 8. Bg2 {[%emt 0:00:30]} Be7 {[%emt 0:00:30] Die Stellung ist ausgeglichen.} 9. O-O {[%emt 0:00:30]} O-O {[%emt 0:00:30]} 10. b3 {[%emt 0:00:30]} Rc8 {[%emt 0:00:30]} 11. Bb2 {[%emt 0:00:30]} b5 {[%emt 0:00:30]} 12. Qc3 {[%emt 0:00:30]} Qb6 {[%emt 0:00:30]} 13. e4 {[%emt 0:00:30]} c5 {[%emt 0:00:30]} 14. d5 {[%emt 0:00:30]} exd5 {[%emt 0:00:30]} 15. exd5 {[%emt 0:00:30]} c4 {[%emt 0:00:30]} 16. bxc4 {[%emt 0:00:30]} bxc4 {[%emt 0:00:30]} 17. a3 {[%emt 0:00:30] Pariert Bb4.} (17. Nxc4 Rxc4 (17... Nxd5 18. Qxg7#) 18. Qxc4 Qxb2 $17) 17... Bxf3 {[%emt 0:00:30]} 18. Bxf3 {[%emt 0:00:30][%cal Oa1c1]} Ne8 {[%emt 0:00:30] [#] Droht stark ...Bf6.} 19. Rab1 {[%emt 0:00:30]} (19. Nxc4 Rxc4 20. Qxc4 Qxb2 $17) 19... Bf6 {[%emt 0:00:30]} 20. Qc2 {[%emt 0:00:30]} Bxb2 {[%emt 0:00:30]} 21. Rxb2 {[%emt 0:00:30]} Qd4 {[%emt 0:00:30]} 22. Ne4 {[%emt 0:00:30]} Ne5 {[%emt 0:00:30]} (22... Qxd5 $2 23. Nf6+ Ndxf6 24. Bxd5 Nxd5 25. Rb7 $18) 23. Bg2 {[%emt 0:00:30]} Nd3 {[%emt 0:00:30]} 24. Rb7 {[%emt 0:00:30]} Nc5 {[%emt 0:00:30] Hervorragende Reitkunst.} 25. Rd1 {[%emt 0:00:30]} (25. Rxa7 $2 {zu gefräßig.} Nxe4 (25... Qxd5 $2 26. Nf6+ Nxf6 27. Bxd5 $18) 26. Ra6 Nd2 $19) 25... Qxd1+ {[%emt 0:00:30]} 26. Qxd1 {[%emt 0:00:30]} Nxb7 {[%emt 0:00:30]} 27. Bh3 {[%emt 0:00:30]} Rc7 {[%emt 0:00:30] [#] Weiss muss nun ...c3 beachten.} 28. Qd4 {[%emt 0:00:30][%cal Od5d6]} ({Viel schlechter ist} 28. d6 Nexd6 29. Nc3 (29. Nxd6 $2 {ist das falsche Schlagen.} Rd8 $19) 29... Rd8 $15) 28... Ned6 {[%emt 0:00:30]} 29. Nc3 {[%emt 0:00:30] Gegen Nb5 gerichtet.} Nc5 {[%emt 0:00:30]} 30. Bf1 {[%emt 0:00:30]} Re8 {[%emt 0:00:30]} 31. Qf4 {[%emt 0:00:30]} Ncb7 {[%emt 0:00:30]} 32. Be2 {[%emt 0:00:30]} Rd8 {[%emt 0:00:30]} 33. h4 {[%emt 0:00:30]} h6 {[%emt 0:00:30]} 34. Bd1 {[%emt 0:00:30]} Nc5 {[%emt 0:00:30]} 35. Bc2 {[%emt 0:00:30]} Nd3 {[%emt 0:00:30]} 36. Bxd3 {[%emt 0:00:30]} cxd3 {[%emt 0:00:30]} 37. Qd4 {[%emt 0:00:30]} Rcd7 {[%emt 0:00:30][%cal Od6b5]} 38. Qxd3 {[%emt 0:00:30]} Ne8 {[%emt 0:00:30]} 39. Qa6 {[%emt 0:00:30]} Nc7 {[%emt 0:00:30][%csl LRa6,LRd5] Schwarz steht etwas besser.} 40. Qa5 {[%emt 0:00:30]} Nxd5 {[%emt 0:00:30]} 41. Nxd5 {[%emt 0:30:30]} Rxd5 {[%emt 0:30:30]} 42. Qxa7 {[%emt 0:00:30]} R5d7 {[%emt 0:00:30]} 43. Qa6 {[%emt 0:00:30] Gewichteter Fehlerwert: Weiß=0.07 (makellos) /Schwarz=0.05 (makellos) .  Ungenau:       	Weiß=3     	Schwarz=2     OK:         	Weiß=15    	Schwarz=17    Bester:       	---       	Schwarz=1} 1/2-1/2

[Event "Serbian League 2024"]
[Site "Bajina Basta"]
[Date "2024.10.01"]
[Round "5.33"]
[White "Kovacevic, Aleksandar"]
[Black "Stankovic, Milos"]
[Result "1/2-1/2"]
[Annotator "TA"]
[ECO "C68"]
[WhiteElo "2479"]
[BlackElo "2466"]
[PlyCount "87"]
[EventDate "2024.09.26"]
[EventType "team-tourn"]
[EventCountry "SRB"]
[SourceTitle "playchess.com"]
[Source "ChessBase"]
[SourceQuality "1"]
[TimeControl "40/5400+30:1800+30"]

{[%evp 13,87,9,17,8,20,14,22,10,34,31,24,20,20,18,28,0,0,-12,0,0,0,-31,-21,-40,-23,-20,0,-33,4,0,46,49,59,41,41,66,58,53,56,56,58,54,55,49,48,46,88,51,60,53,56,45,39,44,52,47,42,34,56,48,33,8,8,8,8,8,8,8,71,0,0,0,0,0,0,0]} 1. e4 {[%emt 1:31:00]} e5 {[%emt 1:31:00]} 2. Nf3 {[%emt 0:00:30]} Nc6 {[%emt 0:00:30]} 3. Bb5 {[%emt 0:00:30]} a6 {[%emt 0:00:30]} 4. Bxc6 {[%emt 0:00:30]} dxc6 {[%emt 0:00:30]} 5. O-O {[%emt 0:00:30]} Bd6 {[%emt 0:00:30]} 6. d4 {[%emt 0:00:30]} exd4 {[%emt 0:00:30]} 7. Qxd4 {[%emt 0:00:30]} f6 {[%emt 0:00:30]} 8. Bd2 {[%emt 0:00:30]} Ne7 {[%emt 0:00:30]} 9. Bb4 {[%emt 0:00:30]} Be6 {[%emt 0:00:30]} 10. Nc3 {[%emt 0:00:30]} a5 {[%emt 0:00:30]} 11. Bxd6 {[%emt 0:00:30]} Qxd6 {[%emt 0:00:30]} 12. Rad1 {[%emt 0:00:30]} Qxd4 {[%emt 0:00:30]} 13. Nxd4 {[%emt 0:00:30]} Bd7 {[%emt 0:00:30]} 14. f4 {[%emt 0:00:30]} O-O-O {[%emt 0:00:30]} 15. Rd3 {[%emt 0:00:30]} c5 {[%emt 0:00:30]} 16. Nf3 {[%emt 0:00:30]} Bc6 {[%emt 0:00:30]} 17. Re3 {[%emt 0:00:30]} Rhe8 {[%emt 0:00:30][%cal Oe7f5]} 18. Rfe1 {[%emt 0:00:30]} b6 {[%emt 0:00:30]} 19. Kf2 {[%emt 0:00:30]} Kb7 {[%emt 0:00:30]} 20. g4 {[%emt 0:00:30]} Nc8 {[%emt 0:00:30][%cal Od8d4,Be7c8,Bc8d6,Bd6e8,Be8f6][%mdl 32]} 21. e5 {[%emt 0:00:30]} fxe5 {[%emt 0:00:30]} (21... f5 $11 {sieht stärker aus.}) 22. Nxe5 $14 {[%emt 0:00:30] Hervorragende Reitkunst.} Rf8 {[%emt 0:00:30]} 23. Kg3 {[%emt 0:00:30]} Rd4 {[%emt 0:00:30]} 24. f5 {[%emt 0:00:30]} Nd6 {[%emt 0:00:30][%cal Og7g6]} 25. Nxc6 {[%emt 0:00:30]} Kxc6 {[%emt 0:00:30]} 26. Rd3 {[%emt 0:00:30]} Re8 {[%emt 0:00:30]} 27. Rxe8 {[%emt 0:00:30]} Nxe8 {[%emt 0:00:30][%mdl 4096] Endspiel. KRN-KRN} 28. Re3 {[%emt 0:00:30]} Nf6 {[%emt 0:00:30]} 29. h3 {[%emt 0:00:30]} b5 {[%emt 0:00:30][%cal Bb6b5,Bb5b4][%mdl 32]} 30. Re6+ {[%emt 0:00:30]} Rd6 {[%emt 0:00:30]} 31. Re7 {[%emt 0:00:30][%cal Og4g5] [#] Droht stark g5!} b4 {[%emt 0:00:30]} 32. Ne4 {[%emt 0:00:30]} Nxe4+ {[%emt 0:00:30]} 33. Rxe4 {[%emt 0:00:30] Und Re7 würde nun gewinnen. KR-KR} a4 {[%emt 0:00:30]} 34. g5 {[%emt 0:00:30]} Kd7 {[%emt 0:00:30]} 35. Re5 {[%emt 0:00:30]} c4 {[%emt 0:00:30]} 36. Re4 $1 {[%emt 0:00:30]} b3 {[%emt 0:00:30]} 37. axb3 {[%emt 0:00:30]} (37. Rxc4 $2 {verliert.} a3 38. Rc3 axb2 39. Rxb3 Rb6 40. Rd3+ Ke7 (40... Kc8 $2 41. Rd1 $19) 41. Re3+ Kf8 $19) (37. cxb3 {mit weiteren Verwicklungen.} axb3 38. Rxc4 bxa2 39. Ra4) 37... cxb3 {[%emt 0:00:30]} 38. cxb3 {[%emt 0:00:30]} (38. Rxa4 $2 {geht unter.} bxc2 39. Rc4 Rc6 $19) 38... Rd3+ {[%emt 0:00:30]} 39. Kg4 {[%emt 0:00:30] Zielt auf f6 ab.} Rxb3 {[%emt 0:00:30]} 40. Rxa4 {[%emt 0:00:30]} Rxb2 {[%emt 0:00:30] [#]} 41. Rf4 {[%emt 0:30:30]} ({Besser ist} 41. Ra8 $1 $16 {[%cal Ra8h8]}) 41... Rb6 $11 {[%emt 0:30:30] Die Stellung ist ausgeglichen.} 42. f6 {[%emt 0:00:30]} gxf6 {[%emt 0:00:30]} 43. gxf6 {[%emt 0:00:30] Droht Matt per f7.} Ke8 {[%emt 0:00:30]} 44. Re4+ {[%emt 0:00:30] Gewichteter Fehlerwert: Weiß=0.09 (makellos) /Schwarz=0.08 (makellos) .  Fehler:       	Weiß=1     	Schwarz=1     Ungenau:       	Weiß=4     	Schwarz=2     OK:         	Weiß=13    	Schwarz=13    Bester:       	---       	Schwarz=3     Stark:        	Weiß=1     	---} 1/2-1/2